bitfinex-derivatives/quotes_BTCF0:USTF0_20251009
["timestamp","ask_amount","ask_price","bid_price","bid_amount"]
[1760041798697,0.66009956,120970.0,120960.0,0.84012527]
[1760041800518,0.66009956,120970.0,120960.0,0.09464527]
[1760041800719,0.4120654,120970.0,120960.0,0.84012527]
[1760041801022,0.66009956,120970.0,120960.0,0.84012527]
[1760041801816,0.66009956,120970.0,120960.0,0.09464527]
[1760041802023,0.66009956,120970.0,120960.0,0.81562527]
[1760041802317,0.66009956,120970.0,120960.0,0.83896527]
[1760041802917,0.66009956,120970.0,120960.0,0.09348527]
[1760041803119,0.66009956,120970.0,120960.0,0.83896527]
[1760041803420,0.7427757,120970.0,120960.0,0.83896527]
[1760041805719,0.7407757,120970.0,120960.0,0.83896527]
[1760041805920,0.7427757,120970.0,120960.0,0.83896527]
[1760041807923,0.7417757,120970.0,120960.0,0.83896527]
[1760041808126,0.7427757,120970.0,120960.0,0.83896527]
[1760041812920,0.4120654,120970.0,120960.0,0.42419557]
[1760041813224,0.32945,120970.0,120960.0,1.65229787]
[1760041813520,0.32945,120970.0,120960.0,1.66016787]
[1760041813724,0.31506,120970.0,120960.0,1.66016787]
[1760041813921,0.291,120970.0,120960.0,1.66016787]
[1760041814116,0.082602,120990.0,120970.0,0.0896555]
[1760041814320,0.082602,120990.0,120980.0,1.1065703]
[1760041814321,0.352602,120990.0,120980.0,1.1065703]
[1760041814521,0.352602,120990.0,120980.0,1.1891789]
[1760041814821,0.352602,120990.0,120980.0,1.1065703]
[1760041815223,0.353602,120990.0,120980.0,1.1065703]
[1760041815520,0.354602,120990.0,120980.0,0.3610903]
[1760041815725,0.389972,120990.0,120980.0,2.83278]
[1760041815920,0.7206823,120990.0,120980.0,2.08718]
[1760041816119,0.7206823,120990.0,120980.0,2.83278]
[1760041816625,0.7196823,120990.0,120980.0,2.83278]
[1760041818925,0.388972,120990.0,120980.0,2.83278]
[1760041819225,0.7196823,120990.0,120980.0,2.83278]
[1760041820121,0.388972,120990.0,120980.0,2.83278]
[1760041821420,0.388972,120990.0,120980.0,0.28574]
[1760041821627,0.388972,120990.0,120980.0,3.09486]
[1760041822526,0.388972,120990.0,120980.0,3.1774685]
[1760041824027,0.388972,120990.0,120980.0,3.1773885]
[1760041824623,0.7196823,120990.0,120980.0,3.1773885]
[1760041824930,0.7196823,120990.0,120980.0,0.3683485]
[1760041825124,0.388972,120990.0,120980.0,3.1773485]
[1760041830129,0.7196823,120990.0,120980.0,3.1773485]
[1760041830631,0.388972,120990.0,120980.0,2.9149485]
[1760041834432,0.388972,120990.0,120980.0,2.9147485]
[1760041836435,0.388972,120990.0,120980.0,0.3683485]
[1760041836636,0.388972,120990.0,120980.0,3.1771485]
[1760041838333,0.388972,120990.0,120980.0,2.9146685]
[1760041844240,0.388972,120990.0,120980.0,0.1059485]
[1760041844436,0.388972,120990.0,120980.0,2.9146685]
[1760041846736,0.353602,120990.0,120980.0,2.9207685]
[1760041846938,0.353602,120990.0,120980.0,3.2514788]
[1760041847641,0.271,120990.0,120980.0,2.5061988]
[1760041847940,0.271,120990.0,120980.0,3.2514788]
[1760041848640,0.271,120990.0,120980.0,0.4427588]
[1760041848941,0.271,120990.0,120980.0,3.2514788]
[1760041849543,0.271,120990.0,120980.0,2.5061988]
[1760041849744,0.271,120990.0,120980.0,3.2514788]
[1760041853048,0.3764118,120990.0,120980.0,0.1120485]
[1760041853347,0.3536018,120990.0,120980.0,3.0126485]
[1760041854650,0.3536018,120990.0,120980.0,3.3433588]
[1760041854853,0.3764118,120990.0,120980.0,3.5138388]
[1760041856552,0.3764118,120990.0,120980.0,3.1831285]
[1760041856947,0.3899318,120990.0,120980.0,0.3683485]
[1760041857148,0.3899318,120990.0,120980.0,3.1770285]
[1760041858155,0.30733,120990.0,120980.0,3.1770285]
[1760041858554,0.29381,120990.0,120980.0,3.1770285]
[1760041860054,0.3764117,120990.0,120980.0,3.1770285]
[1760041860356,0.271,120990.0,120980.0,3.5137988]
[1760041861751,0.3536018,120990.0,120980.0,3.5137988]
[1760041861955,0.3536018,120990.0,120980.0,2.7624188]
[1760041861956,0.3750218,120990.0,120980.0,2.7624188]
[1760041862254,0.3750218,120990.0,120980.0,3.5076588]
[1760041862758,0.3750218,120990.0,120980.0,0.6990588]
[1760041863056,0.7184321,120990.0,120980.0,0.3683486]
[1760041863256,0.7184321,120990.0,120980.0,1.1135886]
[1760041865460,0.6356617,120990.0,120980.0,1.1135886]
[1760041865758,0.6356617,120990.0,120980.0,0.3683486]
[1760041865958,0.6356617,120990.0,120980.0,1.1135886]
[1760041867759,0.6356617,120990.0,120980.0,0.3683486]
[1760041867960,0.6356617,120990.0,120980.0,1.1135886]
[1760041870560,0.6356617,120990.0,120980.0,0.3683486]
[1760041870858,1.2836016,120990.0,120980.0,0.2624]
[1760041871160,1.2836016,120990.0,120980.0,1.15582414]
[1760041871660,1.2836016,120990.0,120980.0,0.41058414]
[1760041871861,1.2836016,120990.0,120980.0,1.00772]
[1760041872063,1.2836016,120990.0,120980.0,0.74532]
[1760041872763,1.2836016,120990.0,120980.0,0.76781]
[1760041874858,1.2836016,120990.0,120980.0,0.74532]
[1760041879464,0.1167285,120980.0,120970.0,0.28489]
[1760041879659,0.9326083,120980.0,120970.0,1.03021]
[1760041880661,0.9326083,120980.0,120970.0,1.03121]
[1760041880867,0.6846684,120980.0,120970.0,1.03221]
[1760041881166,0.6846684,120980.0,120970.0,1.2801499]
[1760041882660,0.6846684,120980.0,120970.0,1.03221]
[1760041883362,0.6846684,120980.0,120970.0,0.28689]
[1760041883661,0.6846684,120980.0,120970.0,1.03221]
[1760041883857,0.6846684,120980.0,120970.0,0.76981]
[1760041884067,0.6846684,120980.0,120970.0,0.02449]
[1760041884268,0.6846684,120980.0,120970.0,0.76981]
[1760041886667,0.6846684,120980.0,120970.0,0.02449]
[1760041886869,0.6846684,120980.0,120970.0,0.76981]
[1760041889061,0.4367285,120980.0,120970.0,1.1003652]
[1760041889267,0.4367285,120980.0,120970.0,1.1074052]
[1760041889268,0.4240285,120980.0,120970.0,1.1074052]
[1760041889469,0.4026085,120980.0,120970.0,1.1074052]
[1760041889769,0.4026085,120980.0,120970.0,1.3698052]
[1760041890670,0.6505484,120980.0,120970.0,1.3698052]
[1760041893171,0.6631784,120980.0,120970.0,1.3698052]
[1760041894373,0.6631784,120980.0,120970.0,1.3627652]
[1760041897377,0.4152385,120980.0,120970.0,1.3627652]
[1760041897578,0.6631784,120980.0,120970.0,1.3627652]
[1760041901580,0.5805699,120980.0,120970.0,1.1003652]
[1760041901775,0.32,120980.0,120970.0,0.3620852]
[1760041901976,0.32,120980.0,120970.0,1.1074452]
[1760041902874,0.32,120980.0,120970.0,1.3553851]
[1760041903078,0.32,120980.0,120970.0,1.1074452]
[1760041903281,0.32,120980.0,120970.0,1.90356924]
[1760041903477,0.1015337,121010.0,120980.0,0.0887071]
[1760041903671,0.33674,121010.0,121000.0,0.6084048]
[1760041903871,0.315,121010.0,121000.0,1.3540448]
[1760041904072,0.005,121010.0,121000.0,1.7540448]
[1760041904275,0.005,121010.0,121000.0,1.7541648]
[1760041904679,0.006,121010.0,121000.0,1.7541648]
[1760041904882,0.006,121010.0,121000.0,1.07411746]
[1760041905080,0.006,121010.0,121000.0,1.81987746]
[1760041905480,0.007,121010.0,121000.0,1.222261]
[1760041905683,0.007,121010.0,121000.0,3.5357412]
[1760041905883,0.007,121010.0,121000.0,4.031621]
[1760041907286,0.007,121010.0,121000.0,3.88347746]
[1760041908096,0.007,121010.0,121000.0,3.88319746]
[1760041911595,0.007,121010.0,121000.0,4.00474867]
[1760041912093,0.007,121010.0,121000.0,1.19566867]
[1760041912293,0.007,121010.0,121000.0,4.00442867]
[1760041914696,0.007,121010.0,121000.0,4.00430867]
[1760041915696,0.007,121010.0,121000.0,1.19566867]
[1760041915888,0.007,121010.0,121000.0,4.00422867]
[1760041916092,0.007,121010.0,121000.0,1.19566867]
[1760041916294,0.007,121010.0,121000.0,4.00422867]
[1760041919400,0.007,121010.0,121000.0,4.26662867]
[1760041922397,0.007,121010.0,121000.0,1.45806867]
[1760041922599,0.007,121010.0,121000.0,4.26634867]
[1760041924505,0.007,121010.0,121000.0,3.52102867]
[1760041924807,0.005,121030.0,121020.0,0.1111613]
[1760041925104,0.4075745,121030.0,121020.0,0.8694411]
[1760041925303,0.4075745,121030.0,121020.0,1.6147211]
[1760041925505,0.325,121030.0,121020.0,1.6147211]
[1760041926105,0.327,121030.0,121020.0,1.6147211]
[1760041926302,0.327,121030.0,121020.0,1.1188413]
[1760041926496,0.6788144,121030.0,121020.0,3.4296612]
[1760041926700,0.4318745,121030.0,121020.0,3.4296612]
[1760041926901,0.4456945,121030.0,121020.0,3.4235612]
[1760041927508,0.4456945,121030.0,121020.0,3.50592948]
[1760041928307,0.4456945,121030.0,121020.0,0.69776948]
[1760041928502,0.4456945,121030.0,121020.0,0.28488]
[1760041928708,1.17600268,121030.0,121020.0,0.28488]
[1760041928910,1.17600268,121030.0,121020.0,1.03024]
[1760041929804,0.8456945,121030.0,121020.0,1.1128213]
[1760041930006,1.17600268,121030.0,121020.0,1.1128213]
[1760041930709,0.8456945,121030.0,121020.0,1.1128213]
[1760041931512,0.8456945,121030.0,121020.0,0.3674613]
[1760041931809,0.8456945,121030.0,121020.0,1.1129413]
[1760041932310,1.17600268,121030.0,121020.0,1.1129413]
[1760041933008,1.17600268,121030.0,121020.0,1.1129013]
[1760041934309,1.17600268,121030.0,121020.0,0.8505013]
[1760041934709,1.17500268,121030.0,121020.0,0.8505013]
[1760041936411,1.17400268,121030.0,121020.0,0.8505013]
[1760041937307,1.17400268,121030.0,121020.0,0.8504613]
[1760041937512,1.17400268,121030.0,121020.0,0.8504213]
[1760041937908,0.8436945,121030.0,121020.0,0.1050613]
[1760041938106,1.17400268,121030.0,121020.0,0.8504213]
[1760041939515,0.8436945,121030.0,121020.0,0.8504213]
[1760041939712,1.17400268,121030.0,121020.0,0.8504213]
[1760041940112,0.76112,121030.0,121020.0,0.1050613]
[1760041940313,0.726,121030.0,121020.0,1.1189213]
[1760041940613,0.726,121030.0,121020.0,1.1188813]
[1760041940807,0.326,121030.0,121020.0,1.18678948]
[1760041941013,0.326,121030.0,121020.0,1.18686948]
[1760041942708,0.4085745,121030.0,121020.0,1.18686948]
[1760041943620,0.326,121030.0,121020.0,1.18686948]
[1760041944021,0.4085745,121030.0,121020.0,1.18686948]
[1760041945621,0.326,121030.0,121020.0,1.18686948]
[1760041946123,0.326,121030.0,121020.0,1.44926948]
[1760041947223,0.4085745,121030.0,121020.0,1.44926948]
[1760041947423,0.4085745,121030.0,121020.0,0.70386948]
[1760041947624,0.4298745,121030.0,121020.0,3.51218948]
[1760041947823,0.4436945,121030.0,121020.0,0.70386948]
[1760041948023,0.4436945,121030.0,121020.0,3.51214948]
[1760041948923,0.4298745,121030.0,121020.0,3.51214948]
[1760041950023,0.4085745,121030.0,121020.0,3.51214948]
[1760041950420,0.4085745,121030.0,121020.0,0.70386948]
[1760041950620,0.4085745,121030.0,121020.0,3.51210948]
[1760041951825,0.4075745,121030.0,121020.0,3.51410948]
[1760041952333,0.4075745,121030.0,121020.0,3.51310948]
[1760041952626,0.4288245,121030.0,121020.0,3.51202948]
[1760041953628,0.4288245,121030.0,121020.0,3.51198948]
[1760041955328,0.4425145,121030.0,121020.0,0.3674613]
[1760041955529,0.4425145,121030.0,121020.0,3.50588948]
[1760041955731,0.4288245,121030.0,121020.0,3.51198948]
[1760041956431,0.325,121030.0,121020.0,3.24958948]
[1760041956630,0.4075745,121030.0,121020.0,3.24958948]
[1760041962930,0.4288245,121030.0,121020.0,0.44146948]
[1760041963133,0.4288245,121030.0,121020.0,3.24340948]
[1760041963933,0.4288245,121030.0,121020.0,3.50580948]
[1760041964734,0.4288245,121030.0,121020.0,0.69776948]
[1760041965035,0.4425145,121030.0,121020.0,3.50576948]
[1760041966124,0.4425145,121030.0,121020.0,0.69776948]
[1760041966335,0.4425145,121030.0,121020.0,3.50576948]
[1760041967034,0.4425145,121030.0,121020.0,3.50572948]
[1760041967837,0.4425145,121030.0,121020.0,3.1754213]
[1760041968138,0.4425145,121030.0,121020.0,0.3674613]
[1760041968528,1.17282268,121030.0,121020.0,0.02248]
[1760041968733,0.0955513,121020.0,121010.0,2.41593627]
[1760041968932,0.72585948,121020.0,121010.0,3.16117627]
[1760041969234,0.3955513,121020.0,121010.0,3.16117627]
[1760041969932,0.3955513,121020.0,121010.0,2.89877627]
[1760041970635,0.31297,121020.0,121010.0,2.89877627]
[1760041971136,0.31297,121020.0,121010.0,3.22908445]
[1760041971338,0.3955513,121020.0,121010.0,3.22908445]
[1760041971541,0.3955513,121020.0,121010.0,2.89877627]
[1760041972641,0.3,121020.0,121010.0,2.90581627]
[1760041972940,0.3,121020.0,121010.0,3.23612445]
[1760041973438,0.3,121020.0,121010.0,3.23636445]
[1760041973936,0.005,121030.0,121020.0,0.1037413]
[1760041974242,0.315,121030.0,121020.0,0.44014948]
[1760041975037,0.4202445,121030.0,121020.0,0.44014948]
[1760041975237,0.4332145,121030.0,121020.0,0.43404948]
[1760041975437,0.4202445,121030.0,121020.0,0.1037413]
[1760041975843,0.4332145,121030.0,121020.0,0.43404948]
[1760041976144,0.4202445,121030.0,121020.0,0.43404948]
[1760041977446,0.4202445,121030.0,121020.0,3.24240948]
[1760041979948,0.4202445,121030.0,121020.0,0.43404948]
[1760041980248,0.4338345,121030.0,121020.0,0.43404948]
[1760041980545,0.4338345,121030.0,121020.0,3.24228948]
[1760041982044,0.4338345,121030.0,121020.0,0.1037413]
[1760041982248,0.76414268,121030.0,121020.0,0.02116]
[1760041982443,0.0961713,121020.0,121010.0,2.41593557]
[1760041982642,0.68647948,121020.0,121010.0,3.16169557]
[1760041982943,0.3561713,121020.0,121010.0,3.16169557]
[1760041983146,0.3561713,121020.0,121010.0,2.41593557]
[1760041983346,0.3790313,121020.0,121010.0,1.12025557]
[1760041984750,0.3790313,121020.0,121010.0,0.37445557]
[1760041984943,0.3790313,121020.0,121010.0,0.3662263]
[1760041985148,0.3790313,121020.0,121010.0,1.1119863]
[1760041988455,0.1190381,121010.0,121000.0,0.08695266]
[1760041988651,0.1190381,121010.0,121000.0,0.83287266]
[1760041988652,0.74934628,121010.0,121000.0,0.83287266]
[1760041989466,0.66689822,121010.0,121000.0,0.83287266]
[1760041989951,0.66689822,121010.0,121000.0,0.83387266]
[1760041990349,0.66689822,121010.0,121000.0,0.83487266]
[1760041990656,0.66689822,121010.0,121000.0,0.91746766]
[1760041991652,0.66689822,121010.0,121000.0,0.08895266]
[1760041991852,0.66689822,121010.0,121000.0,0.83511266]
[1760041996459,0.91475834,121010.0,121000.0,0.08895266]
[1760041996662,1.31475834,121010.0,121000.0,0.61435266]
[1760041997161,1.31475834,121010.0,121000.0,0.63559266]
[1760041997363,1.31475834,121010.0,121000.0,0.61435266]
[1760041999160,1.31475834,121010.0,121000.0,0.06771266]
[1760041999462,1.31475834,121010.0,121000.0,0.52523266]
[1760042002664,1.31475834,121010.0,121000.0,0.06771266]
[1760042002864,1.31475834,121010.0,121000.0,0.26147266]
[1760042005955,1.31475834,121010.0,121000.0,0.80083266]
[1760042014570,1.31475834,121010.0,121000.0,0.82206266]
[1760042015570,1.31475834,121010.0,121000.0,0.80083266]
[1760042018177,1.31475834,121010.0,121000.0,0.82206266]
[1760042018478,1.31475834,121010.0,121000.0,0.80083266]
[1760042022385,0.91475834,121010.0,121000.0,0.80083266]
[1760042023577,0.91475834,121010.0,121000.0,0.06771266]
[1760042023785,0.91475834,121010.0,121000.0,0.67483266]
[1760042023982,0.91475834,121010.0,121000.0,0.06771266]
[1760042024276,0.91475834,121010.0,121000.0,0.48651266]
[1760042027985,0.91475834,121010.0,121000.0,0.50907266]
[1760042035088,0.4190381,121010.0,121000.0,0.49027266]
[1760042035289,0.66689822,121010.0,121000.0,1.23607266]
[1760042035689,0.66689822,121010.0,121000.0,0.73813278]
[1760042035896,0.66689822,121010.0,121000.0,1.48409278]
[1760042036194,0.66689822,121010.0,121000.0,1.23623266]
[1760042041597,0.66689822,121010.0,121000.0,0.49027266]
[1760042041990,0.66689822,121010.0,121000.0,1.23615266]
[1760042045199,0.66689822,121010.0,121000.0,0.49027266]
[1760042045393,0.66689822,121010.0,121000.0,1.23611266]
[1760042045593,0.66689822,121010.0,121000.0,0.49027266]
[1760042045896,0.66689822,121010.0,121000.0,1.23607266]
[1760042047295,0.4190381,121010.0,121000.0,1.23607266]
[1760042047496,0.66689822,121010.0,121000.0,1.23607266]
[1760042049700,0.4190381,121010.0,121000.0,1.23607266]
[1760042050197,0.66689822,121010.0,121000.0,1.23607266]
[1760042051595,0.74953209,121010.0,121000.0,1.23607266]
[1760042052301,0.4190381,121010.0,121000.0,1.56648665]
[1760042052501,0.4190381,121010.0,121000.0,1.23599266]
[1760042052702,0.3,121010.0,121000.0,0.82780665]
[1760042052902,0.082584,121020.0,121010.0,0.1131382]
[1760042053202,0.362584,121020.0,121010.0,0.84363219]
[1760042056002,0.362584,121020.0,121010.0,1.58967219]
[1760042056906,0.362584,121020.0,121010.0,1.73798639]
[1760042057399,0.362584,121020.0,121010.0,3.80114639]
[1760042057606,0.362584,121020.0,121010.0,3.65283219]
[1760042057798,0.362584,121020.0,121010.0,3.65483219]
[1760042058201,0.362584,121020.0,121010.0,3.65383219]
[1760042059104,0.362584,121020.0,121010.0,3.65283219]
[1760042059403,0.28,121020.0,121010.0,3.65283219]
[1760042060506,0.0875746,121030.0,121020.0,0.1104213]
[1760042060701,0.4075746,121030.0,121020.0,0.44091529]
[1760042060907,0.4075746,121030.0,121020.0,3.24991529]
[1760042061609,0.4306646,121030.0,121020.0,0.44091529]
[1760042061805,0.4306646,121030.0,121020.0,2.9195013]
[1760042062510,0.4306646,121030.0,121020.0,0.1052613]
[1760042062711,0.4445646,121030.0,121020.0,2.9143413]
[1760042062911,0.4075746,121030.0,121020.0,2.9195013]
[1760042063315,0.4075746,121030.0,121020.0,2.9194213]
[1760042064911,0.4075746,121030.0,121020.0,3.1818213]
[1760042065812,0.4075746,121030.0,121020.0,3.51231529]
[1760042066215,0.325,121030.0,121020.0,3.91231529]
[1760042066512,0.325,121030.0,121020.0,3.91215529]
[1760042068112,0.4075745,121030.0,121020.0,3.91215529]
[1760042074121,0.4075745,121030.0,121020.0,1.10331529]
[1760042074417,0.4075745,121030.0,121020.0,3.91195529]
[1760042078021,0.4415745,121030.0,121020.0,3.90671529]
[1760042082311,0.4415745,121030.0,121020.0,0.43575529]
[1760042082621,0.4415745,121030.0,121020.0,2.9136613]
[1760042084021,0.4425745,121030.0,121020.0,2.9136613]
[1760042087222,0.4415745,121030.0,121020.0,2.9136613]
[1760042088823,0.4075745,121030.0,121020.0,3.24931529]
[1760042089321,0.325,121030.0,121020.0,3.24931529]
[1760042090025,0.325,121030.0,121020.0,3.39762949]
[1760042090926,0.325,121030.0,121020.0,3.24931529]
[1760042094020,0.325,121030.0,121020.0,3.39762949]
[1760042094526,0.325,121030.0,121020.0,3.59049405]
[1760042094727,0.325,121030.0,121020.0,3.44217985]
[1760042101934,0.325,121030.0,121020.0,3.25031529]
[1760042102140,0.325,121030.0,121020.0,3.25131529]
[1760042106444,0.325,121030.0,121020.0,3.51371529]
[1760042107847,0.34667,121030.0,121020.0,3.51335529]
[1760042108146,0.325,121030.0,121020.0,3.51335529]
[1760042109145,0.34667,121030.0,121020.0,0.70531529]
[1760042109346,0.34667,121030.0,121020.0,3.51335529]
[1760042109644,0.325,121030.0,121020.0,3.51335529]
[1760042111648,0.325,121030.0,121020.0,3.70621985]
[1760042113455,0.325,121030.0,121020.0,3.87111874]
[1760042113649,0.325,121030.0,121020.0,1.06307874]
[1760042113849,0.325,121030.0,121020.0,3.87107874]
[1760042114148,0.325,121030.0,121020.0,3.67821418]
[1760042115151,0.325,121030.0,121020.0,3.8267201]
[1760042116449,0.325,121030.0,121020.0,3.0814401]
[1760042116655,0.325,121030.0,121020.0,3.8267201]
[1760042121160,0.325,121030.0,121020.0,1.0187201]
[1760042121463,0.325,121030.0,121020.0,3.8266801]
[1760042121962,0.325,121030.0,121020.0,1.0187201]
[1760042122262,0.325,121030.0,121020.0,3.8266801]
[1760042122965,0.35948,121030.0,121020.0,3.8266801]
[1760042123163,0.34667,121030.0,121020.0,3.8266801]
[1760042125065,0.34667,121030.0,121020.0,1.0187201]
[1760042125362,0.35948,121030.0,121020.0,3.8215201]
[1760042125562,0.35948,121030.0,121020.0,3.67301418]
[1760042125966,0.35948,121030.0,121020.0,3.86587874]
[1760042129371,0.35948,121030.0,121020.0,0.56252586]
[1760042129570,0.35948,121030.0,121020.0,3.86587874]
[1760042129972,0.35948,121030.0,121020.0,1.05791874]
[1760042130269,0.35948,121030.0,121020.0,3.86587874]
[1760042130769,0.35948,121030.0,121020.0,3.67301418]
[1760042133170,0.35948,121030.0,121020.0,0.86505418]
[1760042133371,0.35948,121030.0,121020.0,3.67301418]
[1760042135872,0.35948,121030.0,121020.0,3.82160125]
[1760042136572,0.35948,121030.0,121020.0,3.67301418]
[1760042138374,0.35948,121030.0,121020.0,3.82159822]
[1760042140070,0.35948,121030.0,121020.0,3.82157397]
[1760042141876,0.34667,121030.0,121020.0,3.82157397]
[1760042142474,0.325,121030.0,121020.0,3.08145397]
[1760042142976,0.325,121030.0,121020.0,5.32673397]
[1760042146672,0.325,121030.0,121020.0,5.17817418]
[1760042147473,0.69099094,121030.0,121020.0,2.4323813]
[1760042147678,0.69099094,121030.0,121020.0,3.32616128]
[1760042150373,0.69099094,121030.0,121020.0,1.26344128]
[1760042150878,0.69099094,121030.0,121020.0,1.1149413]
[1760042151280,0.69099094,121030.0,121020.0,1.30780586]
[1760042152479,0.69099094,121030.0,121020.0,0.56252586]
[1760042152681,0.69099094,121030.0,121020.0,1.30780586]
[1760042154883,0.69099094,121030.0,121020.0,0.3696613]
[1760042155083,1.33868738,121030.0,121020.0,0.43556379]
[1760042155284,1.33868738,121030.0,121020.0,1.15812379]
[1760042155784,1.33868738,121030.0,121020.0,0.2644]
[1760042155987,1.33868738,121030.0,121020.0,1.00968]
[1760042156485,1.33868738,121030.0,121020.0,0.2644]
[1760042156783,1.33868738,121030.0,121020.0,0.89572263]
[1760042157176,1.33868738,121030.0,121020.0,0.15048263]
[1760042157378,1.58638382,121030.0,121020.0,0.15048263]
[1760042157578,1.58638382,121030.0,121020.0,0.89588263]
[1760042157779,1.33868738,121030.0,121020.0,0.89592263]
[1760042157976,1.33868738,121030.0,121020.0,0.15048263]
[1760042158178,1.33868738,121030.0,121020.0,0.89592263]
[1760042159293,1.33868738,121030.0,121020.0,0.74744]
[1760042161891,1.33868738,121030.0,121020.0,0.002]
[1760042162087,1.33868738,121030.0,121020.0,0.50104]
[1760042163287,1.33868738,121030.0,121020.0,0.002]
[1760042163488,1.33868738,121030.0,121020.0,0.59528]
[1760042163884,1.33868738,121030.0,121020.0,0.002]
[1760042164084,1.33868738,121030.0,121020.0,0.5222]
[1760042164292,1.33868738,121030.0,121020.0,0.002]
[1760042164590,1.33868738,121030.0,121020.0,0.52212]
[1760042175587,1.17378972,121030.0,121020.0,0.52212]
[1760042177691,1.17378972,121030.0,121020.0,0.002]
[1760042191999,0.77378972,121030.0,121020.0,0.42516]
[1760042192203,0.77378972,121030.0,121020.0,1.1706]
[1760042192594,0.4432945,121030.0,121020.0,0.42516]
[1760042192794,0.4432945,121030.0,121020.0,1.1706]
[1760042197697,0.4432945,121030.0,121020.0,0.42516]
[1760042197901,0.77378972,121030.0,121020.0,0.42516]
[1760042198402,0.77378972,121030.0,121020.0,1.17068]
[1760042200598,0.77378972,121030.0,121020.0,0.42516]
[1760042200804,0.77378972,121030.0,121020.0,1.17064]
[1760042201599,0.77378972,121030.0,121020.0,0.42516]
[1760042201798,0.77378972,121030.0,121020.0,1.17064]
[1760042202303,0.77378972,121030.0,121020.0,0.77064]
[1760042207608,0.77378972,121030.0,121020.0,0.02516]
[1760042207909,0.77378972,121030.0,121020.0,0.77052]
[1760042208509,0.77378972,121030.0,121020.0,0.02516]
[1760042208708,0.77378972,121030.0,121020.0,0.77052]
[1760042213817,0.77378972,121030.0,121020.0,0.02516]
[1760042214016,0.77378972,121030.0,121020.0,0.77052]
[1760042216120,0.77378972,121030.0,121020.0,0.02516]
[1760042216321,0.77378972,121030.0,121020.0,0.77052]
[1760042220223,0.77378972,121030.0,121020.0,0.02516]
[1760042220424,0.77378972,121030.0,121020.0,0.77048]
[1760042222925,0.77378972,121030.0,121020.0,0.91896263]
[1760042230035,0.77378972,121030.0,121020.0,0.17364263]
[1760042230232,0.77378972,121030.0,121020.0,0.91896263]
[1760042230934,0.77378972,121030.0,121020.0,0.17364263]
[1760042231131,0.77378972,121030.0,121020.0,0.15048263]
[1760042231430,0.77378972,121030.0,121020.0,0.89580263]
[1760042231734,0.77378972,121030.0,121020.0,0.74732]
[1760042235437,0.93897052,121030.0,121020.0,0.74732]
[1760042239236,0.93897052,121030.0,121020.0,0.002]
[1760042239437,0.93897052,121030.0,121020.0,0.74736]
[1760042239737,0.93897052,121030.0,121020.0,0.002]
[1760042239938,0.93897052,121030.0,121020.0,0.74736]
[1760042240734,1.33897052,121030.0,121020.0,0.002]
[1760042240933,1.58680853,121030.0,121020.0,0.002]
[1760042241232,0.1177181,121010.0,121000.0,0.21419529]
[1760042241538,0.68555611,121010.0,121000.0,0.88397529]
[1760042242239,0.68555611,121010.0,121000.0,0.88597529]
[1760042242441,0.4377181,121010.0,121000.0,0.24197529]
[1760042242640,0.68555611,121010.0,121000.0,1.2353333]
[1760042242939,0.68555611,121010.0,121000.0,1.08685067]
[1760042251245,0.68555611,121010.0,121000.0,0.83901266]
[1760042252747,0.68555611,121010.0,121000.0,1.56944567]
[1760042252748,0.4377181,121010.0,121000.0,1.56944567]
[1760042252943,0.4025881,121010.0,121000.0,1.57648567]
[1760042253444,0.4025881,121010.0,121000.0,1.7249683]
[1760042254143,0.4388581,121010.0,121000.0,1.7178883]
[1760042254846,0.68669611,121010.0,121000.0,1.7178883]
[1760042258148,0.68669611,121010.0,121000.0,1.56940567]
[1760042261449,0.68669611,121010.0,121000.0,0.57608766]
[1760042261654,0.68669611,121010.0,121000.0,1.32152766]
[1760042262356,0.68669611,121010.0,121000.0,0.92152766]
[1760042263854,0.68669611,121010.0,121000.0,0.17608766]
[1760042264056,0.68669611,121010.0,121000.0,0.92148766]
[1760042269162,0.68669611,121010.0,121000.0,0.83889266]
[1760042272561,0.68669611,121010.0,121000.0,0.09349266]
[1760042272766,0.93453412,121010.0,121000.0,0.83889266]
[1760042273362,0.93453412,121010.0,121000.0,0.09349266]
[1760042273568,0.93453412,121010.0,121000.0,0.83889266]
[1760042276466,0.68669611,121010.0,121000.0,0.83889266]
[1760042277368,0.68669611,121010.0,121000.0,0.09349266]
[1760042277571,0.68669611,121010.0,121000.0,0.83889266]
[1760042281268,0.4388581,121010.0,121000.0,0.83889266]
[1760042281470,0.68669611,121010.0,121000.0,0.83889266]
[1760042281967,0.68669611,121010.0,121000.0,0.09349266]
[1760042282178,0.68669611,121010.0,121000.0,0.83889266]
[1760042288880,0.68669611,121010.0,121000.0,0.83789266]
[1760042289471,0.68669611,121010.0,121000.0,0.08949266]
[1760042289675,0.68669611,121010.0,121000.0,0.83589266]
[1760042290473,0.4388581,121010.0,121000.0,0.33833067]
[1760042290682,0.4025881,121010.0,121000.0,1.42120368]
[1760042291188,0.4025881,121010.0,121000.0,1.33860868]
[1760042291381,0.4025881,121010.0,121000.0,1.09077067]
[1760042291881,0.4156281,121010.0,121000.0,1.08373067]
[1760042292185,0.68501611,121010.0,121000.0,1.08373067]
[1760042293076,0.68501611,121010.0,121000.0,1.2322133]
[1760042293277,0.68501611,121010.0,121000.0,0.4868133]
[1760042293478,0.68501611,121010.0,121000.0,1.2322133]
[1760042293677,0.68501611,121010.0,121000.0,1.4946133]
[1760042296286,0.68501611,121010.0,121000.0,1.5772083]
[1760042296487,0.4025881,121010.0,121000.0,1.5842483]
[1760042296688,0.65042611,121010.0,121000.0,1.5842483]
[1760042297084,0.65042611,121010.0,121000.0,1.43576567]
[1760042297480,0.4025881,121010.0,121000.0,1.18792766]
[1760042297882,0.4025881,121010.0,121000.0,1.33663514]
[1760042299285,0.32,121010.0,121000.0,0.92166054]
[1760042299484,0.32,121010.0,121000.0,1.51835306]
[1760042299685,0.32,121010.0,121000.0,1.25595306]
[1760042300193,0.32,121010.0,121000.0,1.40466054]
[1760042300493,0.4025881,121010.0,121000.0,1.40466054]
[1760042304996,0.4025881,121010.0,121000.0,1.25595306]
[1760042305295,0.32,121010.0,121000.0,1.25595306]
[1760042305587,0.32,121010.0,121000.0,1.51835306]
[1760042306296,0.4025881,121010.0,121000.0,1.51835306]
[1760042307896,0.4025881,121010.0,121000.0,0.77295306]
[1760042308196,0.4025881,121010.0,121000.0,1.51831306]
[1760042310697,0.4241381,121010.0,121000.0,1.51831306]
[1760042314897,0.4025881,121010.0,121000.0,1.51831306]
[1760042316895,0.4252381,121010.0,121000.0,1.51831306]
[1760042317499,0.4252381,121010.0,121000.0,0.77295306]